{"text_format":"1","workbook":"xlsx","n_sheets":2,"sheets":["Pasiūlymas","Subtiekėjai ir priedai"],"not_rendered":{"charts":0,"images":0,"macros":1,"external_links":0,"defined_names":0,"comments":0,"pivot_tables":0},"unopened":[],"bounds":{"document_bytes":16777216,"sheet_cells":100000,"rows_first":2000,"rows_last":500,"rows_between":2000,"halvings":0,"cell_chars":16384,"cell_head_chars":4096},"cells_cut":0,"cells_raw":0,"read":"whole","date_system":"1900"}

{"sheet":"Pasiūlymas","index":0,"n_rows":373,"n_cols":7,"rows_kept":373,"cut":false,"hidden":false,"merged":[[29,0,29,2],[29,3,29,5],[11,0,11,1],[11,2,11,5],[12,0,12,1],[12,2,12,5],[13,0,13,1],[13,2,13,5],[14,0,14,1],[14,2,14,5],[15,0,15,1],[15,2,15,5],[16,0,16,1],[16,2,16,5],[17,0,17,1],[17,2,17,5],[18,0,18,1],[18,2,18,5],[23,0,23,5],[19,0,19,1],[20,0,20,1],[19,2,19,5],[20,2,20,5],[22,0,22,5],[27,0,27,5],[28,0,28,5],[24,0,24,5],[25,0,25,5],[26,0,26,5]]}
[]
["PIRKIMO SĄLYGŲ PRIEDAS \"PASIŪLYMO FORMA\""]
[]
["REAGENTAI IR VIENKARTINĖS PRIEMONĖS PATOLOGINIAMS TYRIMAMS"]
[]
["Kam:","VšĮ LSMU Kauno ligoninė"]
[]
["Data:","2023-03-10"]
["Nr.:","2303-02"]
["Vieta:","Vilnius"]
[]
["Tiekėjo pavadinimas / Ūkio subjektų grupės nariai:",null,"UAB “Eurochemicals”"]
["Tiekėjo kodas (-ai):",null,302424417]
["Tiekėjo adresas (-ai):",null,"Terminalo g., 1, Kuprioniškės, Vilniaus raj. LT-13279"]
["Tiekėjo PVM mokėtojo kodas(-ai):",null,"LT100004876410"]
["Tiekėjo / Ūkio subjektų grupės atsakingo partnerio sąskaitos numeris, banko pavadinimas ir banko kodas (-ai):",null,"A/s LT87 7044 0600 0710 5237 \nAB Seb bankas, banko kodas 70440\n"]
["Asmens atsakingo už pasiūlymą vardas, pavardė:",null,"Domna Gurinova"]
["Asmens atsakingo už pasiūlymą telefono numeris, el. pašto adresas:",null,"8 5 2056030, info@eurochemicals.lt"]
["Tiekėjo / Ūkio subjektų grupės, laimėjimo atveju, pasirašančio sutartį asmens vardas, pavardė, pareigos:",null,"Alexander Korochin, direktorius"]
["Tiekėjo / Ūkio subjektų grupės, laimėjimo atveju, už sutarties vykdymą atsakingo asmens vardas, pavardė, telefono numeris, elektroninio pašto adresas:",null,"Vadybininkė Irina Vostriagova,  8 5 2056030, info@eurochemicals.lt"]
["(1) Tiekėjo / Ūkio subjektų grupės narių, (2) ūkio subjektų, kurių pajėgumais remiamasi, ir (3) jei pašalinimo pagrindai taikomi visiems subtiekėjams - subtiekėjų, kolegialaus priežiūros organo (Stebėtojų tarybos) ir (ar) kolegialaus valdymo organo (Valdybos) narių sąrašas (jei sudaryta) ir (ar) asmuo, kuriam suteikti VPĮ 46 str. 2 d. 2 p. numatyti įgaliojimai",null,null,null,null,null,{"$f":"IF((SUMPRODUCT(--(C21=\"\"))>0), \"Privaloma užpildyti, kai taikomi pašalinimo pagrindai\", \"\")","v":"Privaloma užpildyti, kai taikomi pašalinimo pagrindai"}]
[]
["Tiekėjo patvirtinimai:"]
["1. Šiuo pasiūlymu pažymime, kad sutinkame su visomi pirkimo sąlygomis, nustatytomis:"]
["1.1. viešojo pirkimo dokumentuose"]
["1.2. kituose pirkimo dokumentuose (jų paaiškinimuose, papildymuose)."]
["2. Patvirtiname, kad informacija ir duomenys, pateikti pasiūlyme, yra teisingi ir apima viską, ko reikia tinkamam sutarties įvykdymui"]
["3. Patvirtiname, kad jei pasiūlyme nenurodyti kolegialaus priežiūros/valdymo organų nariai, šie organai juridiniuose asmenyse nėra sudaryti (taikoma, kai pirkimo dokumentuose nustatyti pašalinimo pagrindai)."]
["4. Pasiūlymas galioja iki termino, nustatyto pirkimo dokumentuose."]
["5. Tais atvejais, kai pagal galiojančius teisės aktus tiekėjui nereikia mokėti PVM, jis nurodo priežastis, dėl kurių PVM nemoka:"]
["6. Tiekėjas kainas pateikia, nurodydamas ne daugiau skaičių po kablelio, nei leidžiama pirkimo dokumentuose."]
["1. DALIS","OBJEKTYVINIAI STIKLELIAI"]
[]
["Tiekėjo pasiūlymas:"]
["Nr.","Pavadinimas","Kiekis","Mato vienetas","Kaina be PVM, Eur","Suma be PVM, Eur","Gamintojas, modelis"]
["1.","Objektyviniai stikleliai"]
["1.1.","Objektyviniai stikleliai",90000,"vnt.",null,{"$f":"IF(ISBLANK(E37),\"\", PRODUCT(C37,E37))","v":""}]
["1.2.","Objektyviniai stikleliai padengti polilizinu su elektrostatiniu krūviu",4000,"vnt.",null,{"$f":"IF(ISBLANK(E38),\"\", PRODUCT(C38,E38))","v":""}]
[null,null,null,null,"Suma be PVM",{"$f":"IF((SUMPRODUCT(--(F37:F38=\"\"))>0), \"\", SUM(F37:F38))","v":""},{"$f":"IF((SUMPRODUCT(--(F37:F38=\"\"))>0), \"Neužpildytos visų objektų kainos\", \"\")","v":"Neužpildytos visų objektų kainos"}]
[null,null,"Taikomas PVM dydis (%)",null,"PVM suma",{"$f":"IF(OR(F39=\"\",D40=\"\"),\"\", PRODUCT(D40,F39)/100)","v":""},{"$f":"IF(D40=\"\", \"Nurodykite taikomą PVM dydį\", \"\")","v":"Nurodykite taikomą PVM dydį"}]
[null,null,null,null,"Suma su PVM",{"$f":"IF(ISBLANK(F40), \"\", SUM(F39:F40))","v":0}]
[]
[]
[]
["2. DALIS","DENGIAMIEJI STIKLELIAI"]
[]
["Tiekėjo pasiūlymas:"]
["Nr.","Pavadinimas","Kiekis","Mato vienetas","Kaina be PVM, Eur","Suma be PVM, Eur","Gamintojas, modelis"]
["2.","Dengiamieji stikleliai"]
["2.1.","Dengiamieji stikleliai 24x50 mm",68000,"vnt.",null,{"$f":"IF(ISBLANK(E50),\"\", PRODUCT(C50,E50))","v":""}]
["2.2.","Dengiamieji stikleliai 24x60 mm",34000,"vnt.",null,{"$f":"IF(ISBLANK(E51),\"\", PRODUCT(C51,E51))","v":""}]
[null,null,null,null,"Suma be PVM",{"$f":"IF((SUMPRODUCT(--(F50:F51=\"\"))>0), \"\", SUM(F50:F51))","v":""},{"$f":"IF((SUMPRODUCT(--(F50:F51=\"\"))>0), \"Neužpildytos visų objektų kainos\", \"\")","v":"Neužpildytos visų objektų kainos"}]
[null,null,"Taikomas PVM dydis (%)",null,"PVM suma",{"$f":"IF(OR(F52=\"\",D53=\"\"),\"\", PRODUCT(D53,F52)/100)","v":""},{"$f":"IF(D53=\"\", \"Nurodykite taikomą PVM dydį\", \"\")","v":"Nurodykite taikomą PVM dydį"}]
[null,null,null,null,"Suma su PVM",{"$f":"IF(ISBLANK(F53), \"\", SUM(F52:F53))","v":0}]
[]
[]
[]
["3. DALIS","HISTOLOGINIAI AŠMENYS"]
[]
["Tiekėjo pasiūlymas:"]
["Nr.","Pavadinimas","Kiekis","Mato vienetas","Kaina be PVM, Eur","Suma be PVM, Eur","Gamintojas, modelis"]
["3.","HISTOLOGINIAI AŠMENYS"]
["3.1.","Histologiniai ašmenys S35",5300,"vnt.",null,{"$f":"IF(ISBLANK(E63),\"\", PRODUCT(C63,E63))","v":""}]
["3.2.","Histologiniai ašmenys N35",200,"vnt.",null,{"$f":"IF(ISBLANK(E64),\"\", PRODUCT(C64,E64))","v":""}]
["3.3.","Histologiniai ašmenys S22",200,"vnt.",null,{"$f":"IF(ISBLANK(E65),\"\", PRODUCT(C65,E65))","v":""}]
[null,null,null,null,"Suma be PVM",{"$f":"IF((SUMPRODUCT(--(F63:F65=\"\"))>0), \"\", SUM(F63:F65))","v":""},{"$f":"IF((SUMPRODUCT(--(F63:F65=\"\"))>0), \"Neužpildytos visų objektų kainos\", \"\")","v":"Neužpildytos visų objektų kainos"}]
[null,null,"Taikomas PVM dydis (%)",null,"PVM suma",{"$f":"IF(OR(F66=\"\",D67=\"\"),\"\", PRODUCT(D67,F66)/100)","v":""},{"$f":"IF(D67=\"\", \"Nurodykite taikomą PVM dydį\", \"\")","v":"Nurodykite taikomą PVM dydį"}]
[null,null,null,null,"Suma su PVM",{"$f":"IF(ISBLANK(F67), \"\", SUM(F66:F67))","v":0}]
[]
[]
[]
["4. DALIS","HISTOLOGINĖS KASETĖS"]
[]
["Tiekėjo pasiūlymas:"]
["Nr.","Pavadinimas","Kiekis","Mato vienetas","Kaina be PVM, Eur","Suma be PVM, Eur","Gamintojas, modelis"]
["4.","HISTOLOGINĖS KASETĖS"]
["4.1.","Histologinės kasetės su dangteliais geltonos",48000,"vnt.",null,{"$f":"IF(ISBLANK(E77),\"\", PRODUCT(C77,E77))","v":""}]
["4.2.","Histologinės kasetės su dangteliais baltos",45000,"vnt.",null,{"$f":"IF(ISBLANK(E78),\"\", PRODUCT(C78,E78))","v":""}]
[null,null,null,null,"Suma be PVM",{"$f":"IF((SUMPRODUCT(--(F77:F78=\"\"))>0), \"\", SUM(F77:F78))","v":""},{"$f":"IF((SUMPRODUCT(--(F77:F78=\"\"))>0), \"Neužpildytos visų objektų kainos\", \"\")","v":"Neužpildytos visų objektų kainos"}]
[null,null,"Taikomas PVM dydis (%)",null,"PVM suma",{"$f":"IF(OR(F79=\"\",D80=\"\"),\"\", PRODUCT(D80,F79)/100)","v":""},{"$f":"IF(D80=\"\", \"Nurodykite taikomą PVM dydį\", \"\")","v":"Nurodykite taikomą PVM dydį"}]
[null,null,null,null,"Suma su PVM",{"$f":"IF(ISBLANK(F80), \"\", SUM(F79:F80))","v":0}]
[]
[]
[]
["5. DALIS","BIOPSINĖS KEMPINĖLĖS"]
[]
["Tiekėjo pasiūlymas:"]
["Nr.","Pavadinimas","Kiekis","Mato vienetas","Kaina be PVM, Eur","Suma be PVM, Eur","Gamintojas, modelis"]
["5.","BIOPSINĖS KEMPINĖLĖS"]
["5.1.","Biopsinės kempinėlės",48000,"vnt.",null,{"$f":"IF(ISBLANK(E90),\"\", PRODUCT(C90,E90))","v":""}]
[null,null,null,null,"Suma be PVM",{"$f":"IF(F90=\"\",\"\",SUM(F90:F90))","v":""},{"$f":"IF(F90=\"\",\"Neužpildytos visos objektų kainos\",\"\")","v":"Neužpildytos visos objektų kainos"}]
[null,null,"Taikomas PVM dydis (%)",null,"PVM suma",{"$f":"IF(OR(F91=\"\",D92=\"\"),\"\", PRODUCT(D92,F91)/100)","v":""},{"$f":"IF(D92=\"\", \"Nurodykite taikomą PVM dydį\", \"\")","v":"Nurodykite taikomą PVM dydį"}]
[null,null,null,null,"Suma su PVM",{"$f":"IF(ISBLANK(F92), \"\", SUM(F91:F92))","v":0}]
[]
[]
[]
["6. DALIS","FORMALINAS"]
[]
["Tiekėjo pasiūlymas:"]
["Nr.","Pavadinimas","Kiekis","Mato vienetas","Kaina be PVM, Eur","Suma be PVM, Eur","Gamintojas, modelis"]
["6.","FORMALINAS"]
["6.1.","Formalinas",2000,"L",1.4,{"$f":"IF(ISBLANK(E102),\"\", PRODUCT(C102,E102))","v":2800},"Diapath, Kat. Nr. F0048"]
[null,null,null,null,"Suma be PVM",{"$f":"IF(F102=\"\",\"\",SUM(F102:F102))","v":2800},{"$f":"IF(F102=\"\",\"Neužpildytos visos objektų kainos\",\"\")","v":""}]
[null,null,"Taikomas PVM dydis (%)",5,"PVM suma",{"$f":"IF(OR(F103=\"\",D104=\"\"),\"\", PRODUCT(D104,F103)/100)","v":140},{"$f":"IF(D104=\"\", \"Nurodykite taikomą PVM dydį\", \"\")","v":""}]
[null,null,null,null,"Suma su PVM",{"$f":"IF(ISBLANK(F104), \"\", SUM(F103:F104))","v":2940}]
[]
[]
[]
["7. DALIS","IZOPROPANOLIS"]
[]
["Tiekėjo pasiūlymas:"]
["Nr.","Pavadinimas","Kiekis","Mato vienetas","Kaina be PVM, Eur","Suma be PVM, Eur","Gamintojas, modelis"]
["7.","Izopropanolis"]
["7.1.","Izopropanolis",1900,"L",6.1,{"$f":"IF(ISBLANK(E114),\"\", PRODUCT(C114,E114))","v":11590},"Carlo Erba, Izopropilo spiritas Ph.Eur.-USP-Ph.Franc.-BP, Kat. Nr. 309507"]
[null,null,null,null,"Suma be PVM",{"$f":"IF(F114=\"\",\"\",SUM(F114:F114))","v":11590},{"$f":"IF(F114=\"\",\"Neužpildytos visos objektų kainos\",\"\")","v":""}]
[null,null,"Taikomas PVM dydis (%)",5,"PVM suma",{"$f":"IF(OR(F115=\"\",D116=\"\"),\"\", PRODUCT(D116,F115)/100)","v":579.5},{"$f":"IF(D116=\"\", \"Nurodykite taikomą PVM dydį\", \"\")","v":""}]
[null,null,null,null,"Suma su PVM",{"$f":"IF(ISBLANK(F116), \"\", SUM(F115:F116))","v":12169.5}]
[]
[]
[]
["8. DALIS","KSILENAS"]
[]
["Tiekėjo pasiūlymas:"]
["Nr.","Pavadinimas","Kiekis","Mato vienetas","Kaina be PVM, Eur","Suma be PVM, Eur","Gamintojas, modelis"]
["8.","KSILENAS"]
["8.1.","Ksilenas",1800,"L",5.2,{"$f":"IF(ISBLANK(E126),\"\", PRODUCT(C126,E126))","v":9360},"Diapath, Kat. Nr. X0056"]
[null,null,null,null,"Suma be PVM",{"$f":"IF(F126=\"\",\"\",SUM(F126:F126))","v":9360},{"$f":"IF(F126=\"\",\"Neužpildytos visos objektų kainos\",\"\")","v":""}]
[null,null,"Taikomas PVM dydis (%)",5,"PVM suma",{"$f":"IF(OR(F127=\"\",D128=\"\"),\"\", PRODUCT(D128,F127)/100)","v":468},{"$f":"IF(D128=\"\", \"Nurodykite taikomą PVM dydį\", \"\")","v":""}]
[null,null,null,null,"Suma su PVM",{"$f":"IF(ISBLANK(F128), \"\", SUM(F127:F128))","v":9828}]
[]
[]
[]
["9. DALIS","PARAFINAS"]
[]
["Tiekėjo pasiūlymas:"]
["Nr.","Pavadinimas","Kiekis","Mato vienetas","Kaina be PVM, Eur","Suma be PVM, Eur","Gamintojas, modelis"]
["9.","PARAFINAS"]
["9.1.","Parafinas histologijai",800,"kg",9.8000000000000007,{"$f":"IF(ISBLANK(E138),\"\", PRODUCT(C138,E138))","v":7840.0000000000009},"Carlo Erba, Kat. Nr. 467958"]
[null,null,null,null,"Suma be PVM",{"$f":"IF(F138=\"\",\"\",SUM(F138:F138))","v":7840.0000000000009},{"$f":"IF(F138=\"\",\"Neužpildytos visos objektų kainos\",\"\")","v":""}]
[null,null,"Taikomas PVM dydis (%)",5,"PVM suma",{"$f":"IF(OR(F139=\"\",D140=\"\"),\"\", PRODUCT(D140,F139)/100)","v":392.00000000000006},{"$f":"IF(D140=\"\", \"Nurodykite taikomą PVM dydį\", \"\")","v":""}]
[null,null,null,null,"Suma su PVM",{"$f":"IF(ISBLANK(F140), \"\", SUM(F139:F140))","v":8232.0000000000018}]
[]
[]
[]
["10. DALIS","AUDINIŲ DEKALCINATAS"]
[]
["Tiekėjo pasiūlymas:"]
["Nr.","Pavadinimas","Kiekis","Mato vienetas","Kaina be PVM, Eur","Suma be PVM, Eur","Gamintojas, modelis"]
["10.","AUDINIŲ DEKALCINATAS"]
["10.1.","Audinių dekalcinatas stiprių mineralinių rūgščių pagrindu",50,"L",null,{"$f":"IF(ISBLANK(E150),\"\", PRODUCT(C150,E150))","v":""}]
["10.2.","Audinių dekalcinatas organinių rūgščių pagrindu",32,"L",null,{"$f":"IF(ISBLANK(E151),\"\", PRODUCT(C151,E151))","v":""}]
[null,null,null,null,"Suma be PVM",{"$f":"IF((SUMPRODUCT(--(F150:F151=\"\"))>0), \"\", SUM(F150:F151))","v":""},{"$f":"IF((SUMPRODUCT(--(F150:F151=\"\"))>0), \"Neužpildytos visų objektų kainos\", \"\")","v":"Neužpildytos visų objektų kainos"}]
[null,null,"Taikomas PVM dydis (%)",null,"PVM suma",{"$f":"IF(OR(F152=\"\",D153=\"\"),\"\", PRODUCT(D153,F152)/100)","v":""},{"$f":"IF(D153=\"\", \"Nurodykite taikomą PVM dydį\", \"\")","v":"Nurodykite taikomą PVM dydį"}]
[null,null,null,null,"Suma su PVM",{"$f":"IF(ISBLANK(F153), \"\", SUM(F152:F153))","v":0}]
[]
[]
[]
["11. DALIS","OBJEKTYVINIŲ STIKLELIŲ DENGIMO SKYSTIS"]
[]
["Tiekėjo pasiūlymas:"]
["Nr.","Pavadinimas","Kiekis","Mato vienetas","Kaina be PVM, Eur","Suma be PVM, Eur","Gamintojas, modelis"]
["11.","OBJEKTYVINIŲ STIKLELIŲ DENGIMO SKYSTIS"]
["11.1.","Objektyvinių stiklelių dengimo skystis",16,"L",null,{"$f":"IF(ISBLANK(E163),\"\", PRODUCT(C163,E163))","v":""}]
[null,null,null,null,"Suma be PVM",{"$f":"IF(F163=\"\",\"\",SUM(F163:F163))","v":""},{"$f":"IF(F163=\"\",\"Neužpildytos visos objektų kainos\",\"\")","v":"Neužpildytos visos objektų kainos"}]
[null,null,"Taikomas PVM dydis (%)",null,"PVM suma",{"$f":"IF(OR(F164=\"\",D165=\"\"),\"\", PRODUCT(D165,F164)/100)","v":""},{"$f":"IF(D165=\"\", \"Nurodykite taikomą PVM dydį\", \"\")","v":"Nurodykite taikomą PVM dydį"}]
[null,null,null,null,"Suma su PVM",{"$f":"IF(ISBLANK(F165), \"\", SUM(F164:F165))","v":0}]
[]
[]
[]
["12. DALIS","KRIOSTATINIS UŽPILAS"]
[]
["Tiekėjo pasiūlymas:"]
["Nr.","Pavadinimas","Kiekis","Mato vienetas","Kaina be PVM, Eur","Suma be PVM, Eur","Gamintojas, modelis"]
["12.","KRIOSTATINIS UŽPILAS"]
["12.1.","Kriostatinis užpilas",240,"ml",null,{"$f":"IF(ISBLANK(E175),\"\", PRODUCT(C175,E175))","v":""}]
[null,null,null,null,"Suma be PVM",{"$f":"IF(F175=\"\",\"\",SUM(F175:F175))","v":""},{"$f":"IF(F175=\"\",\"Neužpildytos visos objektų kainos\",\"\")","v":"Neužpildytos visos objektų kainos"}]
[null,null,"Taikomas PVM dydis (%)",null,"PVM suma",{"$f":"IF(OR(F176=\"\",D177=\"\"),\"\", PRODUCT(D177,F176)/100)","v":""},{"$f":"IF(D177=\"\", \"Nurodykite taikomą PVM dydį\", \"\")","v":"Nurodykite taikomą PVM dydį"}]
[null,null,null,null,"Suma su PVM",{"$f":"IF(ISBLANK(F177), \"\", SUM(F176:F177))","v":0}]
[]
[]
[]
["13. DALIS","DRUSKOS RŪGŠTIS"]
[]
["Tiekėjo pasiūlymas:"]
["Nr.","Pavadinimas","Kiekis","Mato vienetas","Kaina be PVM, Eur","Suma be PVM, Eur","Gamintojas, modelis"]
["13.","DRUSKOS RŪGŠTIS"]
["13.1.","Druskos rūgštis",14,"L",null,{"$f":"IF(ISBLANK(E187),\"\", PRODUCT(C187,E187))","v":""}]
[null,null,null,null,"Suma be PVM",{"$f":"IF(F187=\"\",\"\",SUM(F187:F187))","v":""},{"$f":"IF(F187=\"\",\"Neužpildytos visos objektų kainos\",\"\")","v":"Neužpildytos visos objektų kainos"}]
[null,null,"Taikomas PVM dydis (%)",null,"PVM suma",{"$f":"IF(OR(F188=\"\",D189=\"\"),\"\", PRODUCT(D189,F188)/100)","v":""},{"$f":"IF(D189=\"\", \"Nurodykite taikomą PVM dydį\", \"\")","v":"Nurodykite taikomą PVM dydį"}]
[null,null,null,null,"Suma su PVM",{"$f":"IF(ISBLANK(F189), \"\", SUM(F188:F189))","v":0}]
[]
[]
[]
["14. DALIS","LEDINĖ ACTO RŪGŠTIS"]
[]
["Tiekėjo pasiūlymas:"]
["Nr.","Pavadinimas","Kiekis","Mato vienetas","Kaina be PVM, Eur","Suma be PVM, Eur","Gamintojas, modelis"]
["14.","LEDINĖ ACTO RŪGŠTIS"]
["14.1.","Ledinė acto rūgštis",1,"L",null,{"$f":"IF(ISBLANK(E199),\"\", PRODUCT(C199,E199))","v":""}]
[null,null,null,null,"Suma be PVM",{"$f":"IF(F199=\"\",\"\",SUM(F199:F199))","v":""},{"$f":"IF(F199=\"\",\"Neužpildytos visos objektų kainos\",\"\")","v":"Neužpildytos visos objektų kainos"}]
[null,null,"Taikomas PVM dydis (%)",null,"PVM suma",{"$f":"IF(OR(F200=\"\",D201=\"\"),\"\", PRODUCT(D201,F200)/100)","v":""},{"$f":"IF(D201=\"\", \"Nurodykite taikomą PVM dydį\", \"\")","v":"Nurodykite taikomą PVM dydį"}]
[null,null,null,null,"Suma su PVM",{"$f":"IF(ISBLANK(F201), \"\", SUM(F200:F201))","v":0}]
[]
[]
[]
["15. DALIS","REAGENTAI DAŽYMUI HEMATOKSILINO - EOZINO BŪDU"]
[]
["Tiekėjo pasiūlymas:"]
["Nr.","Pavadinimas","Kiekis","Mato vienetas","Kaina be PVM, Eur","Suma be PVM, Eur","Gamintojas, modelis"]
["15.","REAGENTAI DAŽYMUI HEMATOKSILINO - EOZINO BŪDU"]
["15.1.","Hematoksilino dažai",12,"kompl.",null,{"$f":"IF(ISBLANK(E211),\"\", PRODUCT(C211,E211))","v":""}]
["15.2.","Eozino dažai",12,"kompl.",null,{"$f":"IF(ISBLANK(E212),\"\", PRODUCT(C212,E212))","v":""}]
["15.3.","Skaidrinimo reagentas",40,"L",null,{"$f":"IF(ISBLANK(E213),\"\", PRODUCT(C213,E213))","v":""}]
["15.4.","Melsvinimo reagentas",40,"L",null,{"$f":"IF(ISBLANK(E214),\"\", PRODUCT(C214,E214))","v":""}]
[null,null,null,null,"Suma be PVM",{"$f":"IF((SUMPRODUCT(--(F211:F214=\"\"))>0), \"\", SUM(F211:F214))","v":""},{"$f":"IF((SUMPRODUCT(--(F211:F214=\"\"))>0), \"Neužpildytos visų objektų kainos\", \"\")","v":"Neužpildytos visų objektų kainos"}]
[null,null,"Taikomas PVM dydis (%)",null,"PVM suma",{"$f":"IF(OR(F215=\"\",D216=\"\"),\"\", PRODUCT(D216,F215)/100)","v":""},{"$f":"IF(D216=\"\", \"Nurodykite taikomą PVM dydį\", \"\")","v":"Nurodykite taikomą PVM dydį"}]
[null,null,null,null,"Suma su PVM",{"$f":"IF(ISBLANK(F216), \"\", SUM(F215:F216))","v":0}]
[]
[]
[]
["16. DALIS","ŠIFO REAGENTAS"]
[]
["Tiekėjo pasiūlymas:"]
["Nr.","Pavadinimas","Kiekis","Mato vienetas","Kaina be PVM, Eur","Suma be PVM, Eur","Gamintojas, modelis"]
["16.","ŠIFO REAGENTAS"]
["16.1.","Šifo reagentas",9,"L",null,{"$f":"IF(ISBLANK(E226),\"\", PRODUCT(C226,E226))","v":""}]
[null,null,null,null,"Suma be PVM",{"$f":"IF(F226=\"\",\"\",SUM(F226:F226))","v":""},{"$f":"IF(F226=\"\",\"Neužpildytos visos objektų kainos\",\"\")","v":"Neužpildytos visos objektų kainos"}]
[null,null,"Taikomas PVM dydis (%)",null,"PVM suma",{"$f":"IF(OR(F227=\"\",D228=\"\"),\"\", PRODUCT(D228,F227)/100)","v":""},{"$f":"IF(D228=\"\", \"Nurodykite taikomą PVM dydį\", \"\")","v":"Nurodykite taikomą PVM dydį"}]
[null,null,null,null,"Suma su PVM",{"$f":"IF(ISBLANK(F228), \"\", SUM(F227:F228))","v":0}]
[]
[]
[]
["17. DALIS","PERJODINĖ RŪGŠTIS"]
[]
["Tiekėjo pasiūlymas:"]
["Nr.","Pavadinimas","Kiekis","Mato vienetas","Kaina be PVM, Eur","Suma be PVM, Eur","Gamintojas, modelis"]
["17.","Perjodinė rūgštis"]
["17.1.","Perjodinė rūgštis",400,"g",0.71,{"$f":"IF(ISBLANK(E238),\"\", PRODUCT(C238,E238))","v":284},"Carlo Erba, Kat. Nr. 409184"]
[null,null,null,null,"Suma be PVM",{"$f":"IF(F238=\"\",\"\",SUM(F238:F238))","v":284},{"$f":"IF(F238=\"\",\"Neužpildytos visos objektų kainos\",\"\")","v":""}]
[null,null,"Taikomas PVM dydis (%)",5,"PVM suma",{"$f":"IF(OR(F239=\"\",D240=\"\"),\"\", PRODUCT(D240,F239)/100)","v":14.2},{"$f":"IF(D240=\"\", \"Nurodykite taikomą PVM dydį\", \"\")","v":""}]
[null,null,null,null,"Suma su PVM",{"$f":"IF(ISBLANK(F240), \"\", SUM(F239:F240))","v":298.2}]
[]
[]
[]
["18. DALIS","ALCIANO MĖLIS"]
[]
["Tiekėjo pasiūlymas:"]
["Nr.","Pavadinimas","Kiekis","Mato vienetas","Kaina be PVM, Eur","Suma be PVM, Eur","Gamintojas, modelis"]
["18.","ALCIANO MĖLIS"]
["18.1.","Alciano mėlis 8 GX",100,"g",5.78,{"$f":"IF(ISBLANK(E250),\"\", PRODUCT(C250,E250))","v":578},"Carlo Erba, Kat. Nr. 428561"]
[null,null,null,null,"Suma be PVM",{"$f":"IF(F250=\"\",\"\",SUM(F250:F250))","v":578},{"$f":"IF(F250=\"\",\"Neužpildytos visos objektų kainos\",\"\")","v":""}]
[null,null,"Taikomas PVM dydis (%)",5,"PVM suma",{"$f":"IF(OR(F251=\"\",D252=\"\"),\"\", PRODUCT(D252,F251)/100)","v":28.9},{"$f":"IF(D252=\"\", \"Nurodykite taikomą PVM dydį\", \"\")","v":""}]
[null,null,null,null,"Suma su PVM",{"$f":"IF(ISBLANK(F252), \"\", SUM(F251:F252))","v":606.9}]
[]
[]
[]
["19. DALIS","GIEMSA DAŽAI"]
[]
["Tiekėjo pasiūlymas:"]
["Nr.","Pavadinimas","Kiekis","Mato vienetas","Kaina be PVM, Eur","Suma be PVM, Eur","Gamintojas, modelis"]
["19.","GIEMSA DAŽAI"]
["19.1.","Giemsa dažai histologijai",16,"L",null,{"$f":"IF(ISBLANK(E262),\"\", PRODUCT(C262,E262))","v":""}]
[null,null,null,null,"Suma be PVM",{"$f":"IF(F262=\"\",\"\",SUM(F262:F262))","v":""},{"$f":"IF(F262=\"\",\"Neužpildytos visos objektų kainos\",\"\")","v":"Neužpildytos visos objektų kainos"}]
[null,null,"Taikomas PVM dydis (%)",null,"PVM suma",{"$f":"IF(OR(F263=\"\",D264=\"\"),\"\", PRODUCT(D264,F263)/100)","v":""},{"$f":"IF(D264=\"\", \"Nurodykite taikomą PVM dydį\", \"\")","v":"Nurodykite taikomą PVM dydį"}]
[null,null,null,null,"Suma su PVM",{"$f":"IF(ISBLANK(F264), \"\", SUM(F263:F264))","v":0}]
[]
[]
[]
["20. DALIS","MUCIKARMINO DAŽAI"]
[]
["Tiekėjo pasiūlymas:"]
["Nr.","Pavadinimas","Kiekis","Mato vienetas","Kaina be PVM, Eur","Suma be PVM, Eur","Gamintojas, modelis"]
["20.","MUCIKARMINO DAŽAI"]
["20.1.","Mucikarmino dažai",2400,"ml",null,{"$f":"IF(ISBLANK(E274),\"\", PRODUCT(C274,E274))","v":""}]
[null,null,null,null,"Suma be PVM",{"$f":"IF(F274=\"\",\"\",SUM(F274:F274))","v":""},{"$f":"IF(F274=\"\",\"Neužpildytos visos objektų kainos\",\"\")","v":"Neužpildytos visos objektų kainos"}]
[null,null,"Taikomas PVM dydis (%)",null,"PVM suma",{"$f":"IF(OR(F275=\"\",D276=\"\"),\"\", PRODUCT(D276,F275)/100)","v":""},{"$f":"IF(D276=\"\", \"Nurodykite taikomą PVM dydį\", \"\")","v":"Nurodykite taikomą PVM dydį"}]
[null,null,null,null,"Suma su PVM",{"$f":"IF(ISBLANK(F276), \"\", SUM(F275:F276))","v":0}]
[]
[]
[]
["21. DALIS","MASSON - GOLDNER DAŽYMO RINKINYS"]
[]
["Tiekėjo pasiūlymas:"]
["Nr.","Pavadinimas","Kiekis","Mato vienetas","Kaina be PVM, Eur","Suma be PVM, Eur","Gamintojas, modelis"]
["21.","MASSON - GOLDNER DAŽYMO RINKINYS"]
["21.1.","Masson - Goldner dažymo rinkinys",16,"kompl.",null,{"$f":"IF(ISBLANK(E286),\"\", PRODUCT(C286,E286))","v":""}]
[null,null,null,null,"Suma be PVM",{"$f":"IF(F286=\"\",\"\",SUM(F286:F286))","v":""},{"$f":"IF(F286=\"\",\"Neužpildytos visos objektų kainos\",\"\")","v":"Neužpildytos visos objektų kainos"}]
[null,null,"Taikomas PVM dydis (%)",null,"PVM suma",{"$f":"IF(OR(F287=\"\",D288=\"\"),\"\", PRODUCT(D288,F287)/100)","v":""},{"$f":"IF(D288=\"\", \"Nurodykite taikomą PVM dydį\", \"\")","v":"Nurodykite taikomą PVM dydį"}]
[null,null,null,null,"Suma su PVM",{"$f":"IF(ISBLANK(F288), \"\", SUM(F287:F288))","v":0}]
[]
[]
[]
["22. DALIS","DAŽYMO RINKINYS GELEŽIES PIGMENTUI NUSTATYTI"]
[]
["Tiekėjo pasiūlymas:"]
["Nr.","Pavadinimas","Kiekis","Mato vienetas","Kaina be PVM, Eur","Suma be PVM, Eur","Gamintojas, modelis"]
["22.","DAŽYMO RINKINYS GELEŽIES PIGMENTUI NUSTATYTI"]
["22.1.","Dažymo rinkinys geležies pigmentui nustatyti",10,"kompl.",null,{"$f":"IF(ISBLANK(E298),\"\", PRODUCT(C298,E298))","v":""}]
[null,null,null,null,"Suma be PVM",{"$f":"IF(F298=\"\",\"\",SUM(F298:F298))","v":""},{"$f":"IF(F298=\"\",\"Neužpildytos visos objektų kainos\",\"\")","v":"Neužpildytos visos objektų kainos"}]
[null,null,"Taikomas PVM dydis (%)",null,"PVM suma",{"$f":"IF(OR(F299=\"\",D300=\"\"),\"\", PRODUCT(D300,F299)/100)","v":""},{"$f":"IF(D300=\"\", \"Nurodykite taikomą PVM dydį\", \"\")","v":"Nurodykite taikomą PVM dydį"}]
[null,null,null,null,"Suma su PVM",{"$f":"IF(ISBLANK(F300), \"\", SUM(F299:F300))","v":0}]
[]
[]
[]
["23. DALIS","ALCIANO MĖLIO - PAS DAŽYMO RINKINYS"]
[]
["Tiekėjo pasiūlymas:"]
["Nr.","Pavadinimas","Kiekis","Mato vienetas","Kaina be PVM, Eur","Suma be PVM, Eur","Gamintojas, modelis"]
["23.","Alciano mėlio - PAS dažymo rinkinys"]
["23.1.","Alciano mėlio - PAS dažymo rinkinys",4,"kompl.",null,{"$f":"IF(ISBLANK(E310),\"\", PRODUCT(C310,E310))","v":""}]
[null,null,null,null,"Suma be PVM",{"$f":"IF(F310=\"\",\"\",SUM(F310:F310))","v":""},{"$f":"IF(F310=\"\",\"Neužpildytos visos objektų kainos\",\"\")","v":"Neužpildytos visos objektų kainos"}]
[null,null,"Taikomas PVM dydis (%)",null,"PVM suma",{"$f":"IF(OR(F311=\"\",D312=\"\"),\"\", PRODUCT(D312,F311)/100)","v":""},{"$f":"IF(D312=\"\", \"Nurodykite taikomą PVM dydį\", \"\")","v":"Nurodykite taikomą PVM dydį"}]
[null,null,null,null,"Suma su PVM",{"$f":"IF(ISBLANK(F312), \"\", SUM(F311:F312))","v":0}]
[]
[]
[]
["24. DALIS","RETIKULINO SIDABRAVIMO PAGAL GORDON - SWEET RINKINYS"]
[]
["Tiekėjo pasiūlymas:"]
["Nr.","Pavadinimas","Kiekis","Mato vienetas","Kaina be PVM, Eur","Suma be PVM, Eur","Gamintojas, modelis"]
["24.","RETIKULINO SIDABRAVIMO PAGAL GORDON - SWEET RINKINYS"]
["24.1.","Retikulino sidabravimo pagal Gordon - Sweet rinkinys",12,"kompl.",null,{"$f":"IF(ISBLANK(E322),\"\", PRODUCT(C322,E322))","v":""}]
[null,null,null,null,"Suma be PVM",{"$f":"IF(F322=\"\",\"\",SUM(F322:F322))","v":""},{"$f":"IF(F322=\"\",\"Neužpildytos visos objektų kainos\",\"\")","v":"Neužpildytos visos objektų kainos"}]
[null,null,"Taikomas PVM dydis (%)",null,"PVM suma",{"$f":"IF(OR(F323=\"\",D324=\"\"),\"\", PRODUCT(D324,F323)/100)","v":""},{"$f":"IF(D324=\"\", \"Nurodykite taikomą PVM dydį\", \"\")","v":"Nurodykite taikomą PVM dydį"}]
[null,null,null,null,"Suma su PVM",{"$f":"IF(ISBLANK(F324), \"\", SUM(F323:F324))","v":0}]
[]
[]
[]
["25. DALIS","ORSEINO DAŽYMO RINKINYS"]
[]
["Tiekėjo pasiūlymas:"]
["Nr.","Pavadinimas","Kiekis","Mato vienetas","Kaina be PVM, Eur","Suma be PVM, Eur","Gamintojas, modelis"]
["25.","ORSEINO DAŽYMO RINKINYS"]
["25.1.","Orseino dažymo rinkinys",2,"kompl.",null,{"$f":"IF(ISBLANK(E334),\"\", PRODUCT(C334,E334))","v":""}]
[null,null,null,null,"Suma be PVM",{"$f":"IF(F334=\"\",\"\",SUM(F334:F334))","v":""},{"$f":"IF(F334=\"\",\"Neužpildytos visos objektų kainos\",\"\")","v":"Neužpildytos visos objektų kainos"}]
[null,null,"Taikomas PVM dydis (%)",null,"PVM suma",{"$f":"IF(OR(F335=\"\",D336=\"\"),\"\", PRODUCT(D336,F335)/100)","v":""},{"$f":"IF(D336=\"\", \"Nurodykite taikomą PVM dydį\", \"\")","v":"Nurodykite taikomą PVM dydį"}]
[null,null,null,null,"Suma su PVM",{"$f":"IF(ISBLANK(F336), \"\", SUM(F335:F336))","v":0}]
[]
[]
[]
["26. DALIS","PAPANICOLAU DAŽYMO RINKINYS"]
[]
["Tiekėjo pasiūlymas:"]
["Nr.","Pavadinimas","Kiekis","Mato vienetas","Kaina be PVM, Eur","Suma be PVM, Eur","Gamintojas, modelis"]
["26.","PAPANICOLAU DAŽYMO RINKINYS"]
["26.1.","Papanicolau dažymo rinkinys",20,"kompl.",null,{"$f":"IF(ISBLANK(E346),\"\", PRODUCT(C346,E346))","v":""}]
[null,null,null,null,"Suma be PVM",{"$f":"IF(F346=\"\",\"\",SUM(F346:F346))","v":""},{"$f":"IF(F346=\"\",\"Neužpildytos visos objektų kainos\",\"\")","v":"Neužpildytos visos objektų kainos"}]
[null,null,"Taikomas PVM dydis (%)",null,"PVM suma",{"$f":"IF(OR(F347=\"\",D348=\"\"),\"\", PRODUCT(D348,F347)/100)","v":""},{"$f":"IF(D348=\"\", \"Nurodykite taikomą PVM dydį\", \"\")","v":"Nurodykite taikomą PVM dydį"}]
[null,null,null,null,"Suma su PVM",{"$f":"IF(ISBLANK(F348), \"\", SUM(F347:F348))","v":0}]
[]
[]
[]
["27. DALIS","MAY - GRUNWALD - GIEMSA DAŽYMO RINKINYS"]
[]
["Tiekėjo pasiūlymas:"]
["Nr.","Pavadinimas","Kiekis","Mato vienetas","Kaina be PVM, Eur","Suma be PVM, Eur","Gamintojas, modelis"]
["27.","MAY - GRUNWALD - GIEMSA DAŽYMO RINKINYS"]
["27.1.","May - Grunwald - Giemsa dažymo rinkinys",20,"kompl.",null,{"$f":"IF(ISBLANK(E358),\"\", PRODUCT(C358,E358))","v":""}]
[null,null,null,null,"Suma be PVM",{"$f":"IF(F358=\"\",\"\",SUM(F358:F358))","v":""},{"$f":"IF(F358=\"\",\"Neužpildytos visos objektų kainos\",\"\")","v":"Neužpildytos visos objektų kainos"}]
[null,null,"Taikomas PVM dydis (%)",null,"PVM suma",{"$f":"IF(OR(F359=\"\",D360=\"\"),\"\", PRODUCT(D360,F359)/100)","v":""},{"$f":"IF(D360=\"\", \"Nurodykite taikomą PVM dydį\", \"\")","v":"Nurodykite taikomą PVM dydį"}]
[null,null,null,null,"Suma su PVM",{"$f":"IF(ISBLANK(F360), \"\", SUM(F359:F360))","v":0}]
[]
[]
[]
["28. DALIS","FOSFATINIO BUFERIO TABLETĖS"]
[]
["Tiekėjo pasiūlymas:"]
["Nr.","Pavadinimas","Kiekis","Mato vienetas","Kaina be PVM, Eur","Suma be PVM, Eur","Gamintojas, modelis"]
["28.","FOSFATINIO BUFERIO TABLETĖS"]
["28.1.","Fosfatinio buferio tabletės pH 7,2",200,"vnt.",null,{"$f":"IF(ISBLANK(E370),\"\", PRODUCT(C370,E370))","v":""}]
[null,null,null,null,"Suma be PVM",{"$f":"IF(F370=\"\",\"\",SUM(F370:F370))","v":""},{"$f":"IF(F370=\"\",\"Neužpildytos visos objektų kainos\",\"\")","v":"Neužpildytos visos objektų kainos"}]
[null,null,"Taikomas PVM dydis (%)",null,"PVM suma",{"$f":"IF(OR(F371=\"\",D372=\"\"),\"\", PRODUCT(D372,F371)/100)","v":""},{"$f":"IF(D372=\"\", \"Nurodykite taikomą PVM dydį\", \"\")","v":"Nurodykite taikomą PVM dydį"}]
[null,null,null,null,"Suma su PVM",{"$f":"IF(ISBLANK(F372), \"\", SUM(F371:F372))","v":0}]

{"sheet":"Subtiekėjai ir priedai","index":1,"n_rows":100,"n_cols":11,"rows_kept":100,"cut":false,"hidden":false,"merged":[[47,0,47,9],[52,4,52,9],[50,4,50,9],[52,0,52,3],[50,0,50,3],[38,1,38,6],[37,1,37,6],[36,1,36,6],[35,1,35,6],[43,1,43,6],[42,1,42,6],[41,1,41,6],[40,1,40,6],[39,1,39,6],[32,0,32,9],[34,7,34,9],[34,1,34,6],[45,7,45,9],[42,7,42,9],[37,7,37,9],[36,7,36,9],[35,7,35,9],[44,7,44,9],[43,7,43,9],[41,7,41,9],[40,7,40,9],[39,7,39,9],[38,7,38,9],[45,1,45,6],[44,1,44,6],[1,0,2,10],[30,0,30,9],[14,5,14,7],[8,5,8,7],[7,5,7,7],[6,5,6,7],[14,8,14,9],[8,8,8,9],[7,8,7,9],[6,8,6,9],[14,0,14,1],[8,0,8,1],[7,0,7,1],[6,0,6,1],[14,2,14,4],[8,2,8,4],[7,2,7,4],[9,8,9,9],[6,2,6,4],[5,2,5,4],[5,8,5,9],[4,8,4,9],[4,5,4,7],[4,2,4,4],[4,0,4,1],[5,5,5,7],[5,0,5,1],[9,0,9,1],[13,2,13,4],[12,2,12,4],[11,2,11,4],[10,2,10,4],[9,2,9,4],[13,5,13,7],[12,5,12,7],[11,5,11,7],[10,5,10,7],[9,5,9,7],[16,0,16,10],[18,8,18,9],[18,5,18,7],[18,2,18,4],[18,0,18,1],[13,0,13,1],[12,0,12,1],[11,0,11,1],[10,0,10,1],[13,8,13,9],[12,8,12,9],[11,8,11,9],[10,8,10,9],[23,8,23,9],[22,8,22,9],[21,8,21,9],[20,8,20,9],[19,8,19,9],[28,8,28,9],[27,8,27,9],[26,8,26,9],[25,8,25,9],[24,8,24,9],[23,5,23,7],[22,5,22,7],[21,5,21,7],[20,5,20,7],[19,5,19,7],[28,5,28,7],[27,5,27,7],[26,5,26,7],[25,5,25,7],[24,5,24,7],[23,2,23,4],[22,2,22,4],[21,2,21,4],[20,2,20,4],[19,2,19,4],[28,2,28,4],[27,2,27,4],[26,2,26,4],[25,2,25,4],[24,2,24,4],[23,0,23,1],[22,0,22,1],[21,0,21,1],[20,0,20,1],[19,0,19,1],[28,0,28,1],[27,0,27,1],[26,0,26,1],[25,0,25,1],[24,0,24,1]]}
[]
["Ūkio subjektai (įskaitant kvazisubtiekėjus - fiziniai asmenys, kuriuos ketinama įdarbinti pirkimo laimėjimo atveju), kurių pajėgumais tiekėjas remiasi, kad atitiktų keliamus kvalifikacijos reikalavimus:"]
[]
[]
["Pavadinimas*",null,"Kodas, adresas",null,null,"Perduodami įsipareigojimai",null,null,"Perduodamų įsipareigojimų dalis nuo visos pirkimo sutarties (Eur arba %)",null,"Kval. Reikalavimo Nr."]
[]
[]
[]
[]
[]
[]
[]
[]
[]
[]
[]
["Subtiekėjams / subteikėjams / subrangovams numatomos perduoti veiklos (privaloma nurodyti) ir šių ūkio subjektų pavadinimai (jei žinomi):"]
[]
["Pavadinimas",null,"Kodas, adresas",null,null,"Perduodama veikla*",null,null,"Perduodamos veiklos dalis nuo visos pirkimo sutarties (Eur arba %)"]
[]
[]
[]
[]
[]
[]
[]
[]
[]
[]
[]
[]
[]
["Kartu su pasiūlymu pateikiami šie dokumentai:"]
[]
["Nr.","Dokumento  pavadinimas",null,null,null,null,null,"Dokumentas yra konfidencialus? Taip/Ne"]
["1","Jungtinės veiklos kopija (jei taikoma)"]
["2","Europos bendrasis viešųjų pirkimų dokumentas"]
["3","Subtiekimo sutartis, ketinimų protokolas, preliminarios sutartys ar kiti dokumentai, patvirtinantys, kad laimėjus pirkimą tiekėjui bus prieinami kitų ūkio subjektų ištekliai (jei pasitelkiami kvalifikacijos atitikimui)"]
[]
[]
[]
[]
[]
[]
[]
[]
[]
["Pasiūlyme nurodyta Prekės kaina, išskyrus jos sudedamąsias dalis, subtiekėjai, taip pat kita informacija, kuri teisės aktų nustatyta tvarka turi būti skelbiama arba kitokiu būdu viešai prieinama visuomenei, nėra laikoma konfidencialia informacija. Konfidencialią informaciją sudaro, visų pirma, komercinė (gamybinė) paslaptis ir konfidencialieji pasiūlymų aspektai. Informacija, kurią viešai skelbti įpareigoja Lietuvos Respublikos įstatymai, negali būti tiekėjo nurodoma kaip konfidenciali, todėl, tiekėjui nurodžius tokią informaciją kaip konfidencialią, perkančioji organizacija turi teisę ją skelbti. Jei tiekėjas nenurodo konfidencialios informacijos, laikoma, kad konfidencialios informacijos tiekėjo pasiūlyme nėra. Vadovaujantis Informacijos viešinimo Centrinėje viešųjų pirkimų informacinėje sistemoje tvarkos aprašu, patvirtintu Viešųjų pirkimų tarnybos direktoriaus 2017 m. birželio 19 d. įsakymu Nr. 1S-91 „Dėl Informacijos viešinimo Centrinėje viešųjų pirkimų informacinėje sistemoje tvarkos aprašo patvirtinimo“, perkančioji organizacija laimėjusio dalyvio pasiūlymą, išskyrus informaciją, kurią tiekėjas nurodė kaip konfidencialią, paskelbs CVP IS."]
[]
[]
["Tiekėjo arba jo įgalioto asmens pareigų pavadinimas:"]
[]
["Pasirašančio asmens vardas ir pavardė:"]
[]
[]
[]
[]
[]
[]
[]
[]
[]
[]
[]
[]
[]
[]
[]
[]
[]
[]
[]
[]
[]
[]
[]
[]
[]
[]
[]
[]
[]
[]
[]
[]
[]
[]
[]
[]
[]
[]
[]
[]
[]
[]
[]
[]
[]
[]
["7832-1 2023-02-07 13:46:37"]